bitfinex/quotes_SOLUSD_20240926
["timestamp","ask_amount","ask_price","bid_price","bid_amount"]
[1727322844459,6.6872,149.54,149.5,0.3607003]
[1727322846668,0.12549,149.53,149.5,0.3607003]
[1727322847647,20.0,149.57,149.5,0.3607003]
[1727322847850,6.6863,149.56,149.5,0.3607003]
[1727322848258,6.6867,149.55,149.5,0.3607003]
[1727322848466,6.6873,149.54,149.5,0.3607003]
[1727322853585,26.81229,149.55,149.5,0.3607003]
[1727322858658,6.98949006,149.54,149.5,0.3607003]
[1727322859560,13.67669006,149.54,149.5,0.3607003]
[1727322860052,6.98949006,149.54,149.5,0.3607003]
[1727322881271,20.0,149.56,149.51,16.0687]
[1727322888997,26.6863,149.56,149.51,16.0687]
[1727322900902,33.63387721,149.56,149.51,16.0687]
[1727322901487,26.94757721,149.56,149.51,16.0687]
[1727322901913,20.0,149.56,149.51,16.0687]
[1727322902605,6.6861,149.57,149.51,16.0687]
[1727322902982,6.94745798,149.58,149.51,16.0687]
[1727322903309,19.80278962,149.64,149.54,35.80519675]
[1727322903480,6.6836,149.62,149.56,16.1416]
[1727322904204,6.94528856,149.63,149.56,16.1416]
[1727322904415,13.62878856,149.63,149.56,16.1416]
[1727322904785,20.0,149.62,149.56,16.1416]
[1727322904986,6.684,149.61,149.56,16.1416]
[1727322906914,20.0,149.62,149.56,16.1416]
[1727322910297,20.0,149.62,149.57,1.33708969]
[1727322910802,20.0,149.62,149.57,6.0812]
[1727322911913,20.0,149.62,149.57,7.41815956]
[1727322912715,6.94528856,149.63,149.57,6.0812]
[1727322913019,20.0,149.63,149.57,6.0812]
[1727322913898,26.6832,149.63,149.57,6.0812]
[1727322914409,20.0,149.63,149.57,7.41815709]
[1727322915713,13.62864926,149.64,149.57,7.41815709]
[1727322915897,6.94584926,149.64,149.57,19.44646984]
[1727322917000,6.94584926,149.64,149.57,7.41815709]
[1727322917416,20.0,149.64,149.57,6.0812]
[1727322918017,6.6828,149.64,149.57,6.0812]
[1727322928025,13.64159156,149.64,149.57,6.0812]
[1727322928517,6.95879156,149.64,149.57,6.0812]
[1727322928730,6.6835,149.63,149.57,6.0812]
[1727322938235,6.96005673,149.62,149.57,6.0812]
[1727322953134,0.12549,149.61,149.56,16.1416]
[1727322953340,6.6848,149.6,149.56,16.1416]
[1727322955033,13.63540887,149.6,149.56,16.1416]
[1727322959536,6.95060887,149.6,149.53,6.0214]
[1727322959741,6.6858,149.57,149.52,16.3299]
[1727322965330,13.63737469,149.57,149.52,16.3299]
[1727322966153,6.6843,149.61,149.53,7.55404928]
[1727322966645,6.94969034,149.6,149.53,7.55404928]
[1727322967252,6.94969034,149.6,149.53,6.2165]
[1727322968128,13.63429034,149.6,149.53,6.2165]
[1727322971753,6.94969034,149.6,149.53,6.2165]
[1727322971968,6.94969034,149.6,149.54,17.66191658]
[1727322972146,6.6836,149.62,149.54,17.66191658]
[1727322972147,20.0,149.61,149.54,17.66191658]
[1727322972833,20.0,149.61,149.54,16.3247]
[1727322973533,20.0,149.61,149.55,1.33717511]
[1727322973734,20.0,149.61,149.54,16.3247]
[1727322977262,13.63059256,149.62,149.54,16.3247]
[1727322977561,0.12549,149.61,149.54,16.3247]
[1727322977741,6.6845,149.6,149.54,16.3247]
[1727322982654,6.94919158,149.59,149.54,16.3247]
[1727322991965,6.94919158,149.59,149.54,17.6619967]
[1727322992177,44.027864,149.64,149.54,17.6619967]
[1727322992377,20.0,149.61,149.54,17.6619967]
[1727322993168,6.94518046,149.62,149.53,18.24481275]
[1727322993169,6.94518046,149.62,149.56,16.145]
[1727322993351,6.94518046,149.62,149.58,6.5936]
[1727322998568,13.62878046,149.62,149.58,6.5936]
[1727323000450,6.94518046,149.62,149.58,6.5936]
[1727323003458,13.62878046,149.62,149.58,6.5936]
[1727323005983,13.62878046,149.62,149.56,16.145]
[1727323008260,6.6841,149.61,149.56,16.145]
[1727323015183,0.12549,149.61,149.56,16.145]
[1727323019875,6.6847,149.6,149.56,16.145]
[1727323020666,0.12549,149.59,149.56,16.145]
[1727323020866,0.25098,149.59,149.56,16.145]
[1727323022989,7.17160031,149.59,149.56,16.145]
[1727323024102,27.28160031,149.59,149.52,15.8079]
[1727323024393,0.25098,149.57,149.52,15.8079]
[1727323025401,6.93678,149.57,149.52,15.8079]
[1727323025583,6.6862,149.56,149.52,15.8079]
[1727323026089,0.12549,149.55,149.52,15.8079]
[1727323026683,6.6867,149.55,149.52,15.8079]
[1727323027272,0.12549,149.56,149.52,15.8079]
[1727323027273,6.6871,149.54,149.52,15.8079]
[1727323028390,20.23549,149.56,149.52,15.8079]
[1727323028583,0.12549,149.54,149.52,15.8079]
[1727323039680,6.6876,149.53,149.5,0.3607003]
[1727323039880,0.12549,149.52,149.5,0.3607003]
[1727323040408,6.81359,149.52,149.5,0.3607003]
[1727323041190,6.93948,149.51,149.5,0.3607003]
[1727323043497,13.84902246,149.51,149.5,0.3607003]
[1727323050308,33.95902246,149.51,149.5,0.3607003]
[1727323050510,77.73590646,149.51,149.5,0.3607003]
[1727323053785,47.05128,149.47,149.46,0.3569946]
[1727323053992,20.25098,149.47,149.46,0.3569946]
[1727323054714,27.1609207,149.47,149.46,0.3569946]
[1727323055006,33.8512207,149.47,149.46,0.3569946]
[1727323060706,53.9612207,149.47,149.46,0.3569946]
[1727323073030,33.7257307,149.47,149.46,0.3569946]
[1727323074715,26.9099407,149.47,149.46,0.3569946]
[1727323074914,44.32810296,149.47,149.46,0.3569946]
[1727323078733,33.7257307,149.47,149.46,0.3569946]
[1727323083436,44.45359296,149.47,149.46,0.3569946]
[1727323083920,33.8512207,149.47,149.46,0.3569946]
[1727323086244,6.9099407,149.47,149.46,0.3569946]
[1727323086633,13.6002407,149.47,149.46,0.3569946]
[1727323094256,24.45359296,149.47,149.46,0.3569946]
[1727323095324,13.8512207,149.47,149.46,0.3569946]
[1727323098145,6.9099407,149.47,149.46,0.3569946]
[1727323098362,6.6899,149.48,149.46,0.3569946]
[1727323100440,6.90665781,149.49,149.46,0.3569946]
[1727323100869,6.6887,149.51,149.46,0.3569946]
[1727323101238,13.59594371,149.51,149.46,0.3569946]
[1727323104656,6.90724371,149.51,149.46,0.3569946]
[1727323104861,6.689,149.5,149.46,0.3569946]
[1727323105471,6.6899,149.48,149.46,0.3569946]
[1727323105837,6.6895,149.49,149.46,0.3569946]
[1727323107262,26.81439,149.5,149.46,0.3569946]
[1727323108633,13.59584371,149.51,149.46,0.3569946]
[1727323108844,6.90724371,149.51,149.46,0.3569946]
[1727323109052,6.6881,149.52,149.46,0.3569946]
[1727323109249,13.58530067,149.52,149.46,0.3569946]
[1727323110241,6.6885,149.51,149.46,0.3569946]
[1727323115365,6.6894,149.49,149.46,0.3569946]
[1727323119640,13.58794617,149.49,149.46,0.3569946]
[1727323121181,20.11,149.48,149.46,0.3569946]
[1727323121368,13.58794617,149.49,149.46,0.3569946]
[1727323125072,6.6901,149.48,149.46,0.3569946]
[1727323127281,6.89854617,149.49,149.46,0.3569946]
[1727323127282,6.94128,149.47,149.46,0.3569946]
[1727323129979,13.83793887,149.47,149.46,0.3569946]
[1727323130377,33.94793887,149.47,149.46,0.3569946]
[1727323130574,77.72482287,149.47,149.46,0.3569946]
[1727323143900,33.83793887,149.47,149.46,0.3569946]
[1727323144104,26.89665887,149.47,149.46,0.3569946]
[1727323144608,6.89665887,149.47,149.46,0.3569946]
[1727323144814,20.0,149.49,149.46,15.5656946]
[1727323153114,6.8941889,149.51,149.46,15.5656946]
[1727323153434,20.0,149.5,149.46,15.5656946]
[1727323157411,6.8941889,149.51,149.47,1.33813503]
[1727323157609,6.6879,149.53,149.47,1.33813503]
[1727323157811,13.58428618,149.53,149.47,1.33813503]
[1727323158608,13.58428618,149.53,149.46,15.5656946]
[1727323164622,6.81389,149.52,149.46,15.5656946]
[1727323168324,6.89522758,149.51,149.46,15.5656946]
[1727323171527,13.58372758,149.51,149.46,15.5656946]
[1727323173345,0.12549,149.5,149.46,15.5656946]
[1727323173508,6.81439,149.5,149.46,15.5656946]
[1727323178606,6.89197921,149.49,149.46,15.5656946]
[1727323180309,6.89197921,149.49,149.47,12.02831275]
[1727323180509,1.16518281,149.59,149.49,6.4489]
[1727323180726,6.88944446,149.56,149.5,1.33768597]
[1727323181036,16.7116,149.6,149.49,18.47721275]
[1727323181536,20.11,149.58,149.49,18.47721275]
[1727323181913,20.25098,149.57,149.49,18.47721275]
[1727323182432,26.93688,149.57,149.49,18.47721275]
[1727323183234,26.93688,149.57,149.5,16.87341762]
[1727323183914,26.93688,149.57,149.5,15.5358]
[1727323191734,6.88184096,149.56,149.5,15.5358]
[1727323195748,13.56804096,149.56,149.5,15.5358]
[1727323198474,13.56804096,149.56,149.5,16.87341704]
[1727323199958,13.56804096,149.56,149.5,15.5358]
[1727323202842,6.6867,149.55,149.5,15.5358]
[1727323203763,0.12549,149.54,149.5,15.5358]
[1727323205460,6.6873,149.54,149.5,15.5358]
[1727323205628,0.12549,149.53,149.5,15.5358]
[1727323207454,6.6873,149.54,149.5,15.5358]
[1727323208962,6.6877,149.53,149.5,15.5358]
[1727323209331,0.12549,149.52,149.5,15.5358]
[1727323210340,6.81269,149.54,149.5,15.5358]
[1727323210538,0.12549,149.53,149.5,15.5358]
[1727323211937,20.23549,149.53,149.5,15.5358]
[1727323212137,0.12549,149.53,149.5,15.5358]
[1727323213743,6.81319,149.53,149.5,15.5358]
[1727323219186,6.688,149.52,149.5,15.5358]
[1727323219344,6.81399,149.51,149.46,22.5897946]
[1727323220449,26.81359,149.52,149.46,22.5897946]
[1727323220764,6.81399,149.51,149.46,22.5897946]
[1727323221001,6.6885,149.51,149.46,22.5897946]
[1727323222969,6.6885,149.51,149.46,16.2463946]
[1727323222970,0.12549,149.5,149.46,16.2463946]
[1727323223158,0.25098,149.5,149.46,16.2463946]
[1727323223364,0.12549,149.48,149.46,16.2463946]
[1727323225173,20.0,149.5,149.46,16.2463946]
[1727323226666,0.12549,149.49,149.46,16.2463946]
[1727323229982,6.94078,149.49,149.46,16.2463946]
[1727323237872,27.05078,149.49,149.46,16.2463946]
[1727323245418,6.6898,149.48,149.46,16.2463946]
[1727323245582,0.12549,149.47,149.46,16.2463946]
[1727323249109,33.66553302,149.49,149.46,16.2463946]
[1727323249608,0.12549,149.48,149.46,16.2463946]
[1727323251212,0.25098,149.48,149.46,16.2463946]
[1727323255097,0.12549,149.48,149.46,16.2463946]
[1727323258014,6.86603302,149.49,149.46,16.2463946]
[1727323258319,0.12549,149.49,149.46,16.2463946]
[1727323260207,0.25098,149.49,149.46,16.2463946]
[1727323263319,6.94058,149.49,149.46,16.2463946]
[1727323263530,0.12549,149.47,149.46,16.2463946]
[1727323263817,0.12549,149.47,149.46,0.3569946]
[1727323276226,53.68584942,149.5,149.46,0.3569946]
[1727323276430,0.25098,149.49,149.46,0.3569946]
[1727323283515,6.94068,149.49,149.46,0.3569946]
[1727323302151,50.848164,149.47,149.46,0.3569946]
[1727323302352,50.848164,149.47,149.42,21.4641]
[1727323302353,44.157864,149.46,149.42,15.3398]
[1727323302556,0.12549,149.43,149.41,0.3229037]
[1727323303262,0.25098,149.44,149.41,0.3229037]
[1727323304137,44.157864,149.44,149.41,0.3229037]
[1727323304342,0.12549,149.42,149.41,0.3229037]
[1727323305731,6.94348,149.42,149.41,0.3229037]
[1727323306651,0.25098,149.42,149.41,0.3229037]
[1727323310663,6.94348,149.42,149.41,0.3229037]
[1727323311135,0.25098,149.42,149.41,0.3229037]
[1727323330274,50.850364,149.42,149.41,0.3229037]
[1727323330479,50.850364,149.42,149.38,16.2509]
[1727323330480,20.0,149.41,149.38,16.2509]
[1727323330775,6.94448,149.4,149.35,16.2148]
[1727323332679,13.81988,149.4,149.35,16.2148]
[1727323332875,13.81988,149.4,149.35,14.5717946]
[1727323334578,0.25098,149.38,149.35,14.5717946]
[1727323334952,6.94538,149.38,149.35,14.5717946]
[1727323335553,0.12549,149.36,149.35,14.5717946]
[1727323337273,0.12549,149.37,149.31,22.8424]
[1727323337486,6.8754,149.4,149.31,18.52391275]
[1727323337683,6.8754,149.4,149.33,16.3468]
[1727323337890,6.6936,149.4,149.33,16.3468]
[1727323338187,13.58219289,149.4,149.33,16.3468]
[1727323338621,6.88859289,149.4,149.34,1.33918025]
[1727323338768,20.0,149.41,149.33,16.3468]
[1727323339201,26.888561,149.41,149.33,16.3468]
[1727323339893,0.25098,149.4,149.33,16.3468]
[1727323343870,0.12549,149.4,149.33,16.3468]
[1727323346381,0.12549,149.36,149.33,15.4196]
[1727323346599,15.44160339,149.41,149.33,15.4196]
[1727323346600,46.8243,149.39,149.33,15.4196]
[1727323346792,0.12549,149.38,149.33,15.4196]
[1727323346976,20.0,149.39,149.33,15.4196]
[1727323347182,23.776884,149.39,149.33,15.4196]
[1727323347387,0.25098,149.38,149.33,15.4196]
[1727323347789,0.12549,149.38,149.33,15.4196]
[1727323348105,0.25098,149.39,149.33,15.4196]
[1727323349513,7.14199151,149.39,149.33,15.4196]
[1727323351415,6.89101151,149.39,149.34,13.36739573]
[1727323351613,6.693,149.41,149.34,12.02831275]
[1727323351919,13.58578675,149.41,149.34,12.02831275]
[1727323352906,0.25098,149.4,149.33,15.4196]
[1727323353224,6.6939,149.39,149.33,15.4196]
[1727323353619,0.12549,149.38,149.33,15.4196]
[1727323354110,6.94438,149.4,149.33,15.4196]
[1727323354412,0.25098,149.4,149.33,15.4196]
[1727323356409,24.027864,149.4,149.33,15.4196]
[1727323356606,0.25098,149.38,149.33,15.4196]
[1727323356806,6.94528,149.38,149.33,15.4196]
[1727323357298,0.12549,149.38,149.33,15.4196]
[1727323359593,6.81989,149.38,149.33,15.4196]
[1727323359792,0.12549,149.37,149.33,15.4196]
[1727323361087,0.12549,149.36,149.33,15.4196]
[1727323361401,6.6958,149.35,149.32,0.3229037]
[1727323361602,20.12549,149.35,149.32,0.3229037]
[1727323361917,0.12549,149.37,149.32,0.3229037]
[1727323362108,7.1509381,149.38,149.33,16.2564]
[1727323362496,0.25098,149.38,149.33,16.2564]
[1727323365602,6.94538,149.38,149.33,16.2564]
[1727323366017,6.6948,149.37,149.33,16.2564]
[1727323366707,0.12549,149.36,149.33,16.2564]
[1727323367022,0.25098,149.36,149.33,16.2564]
[1727323371721,6.94618,149.36,149.33,16.2564]
[1727323372994,13.8550932,149.36,149.33,16.2564]
[1727323376926,6.9089132,149.36,149.33,16.2564]
[1727323377425,0.12549,149.37,149.33,16.2564]
[1727323379614,33.60176538,149.39,149.33,16.2564]
[1727323381605,6.81989,149.38,149.33,16.2564]
[1727323386120,20.13,149.37,149.33,16.2564]
[1727323386327,6.81989,149.38,149.33,16.2564]
[1727323387729,6.82019,149.37,149.33,16.2564]
[1727323388109,0.12549,149.36,149.33,16.2564]
[1727323388309,0.12549,149.35,149.33,16.2564]
[1727323389207,0.12549,149.35,149.32,0.3229037]
[1727323389407,6.82119,149.35,149.32,0.3229037]
[1727323389617,0.12549,149.35,149.32,0.3229037]
[1727323391149,0.12549,149.36,149.32,0.3229037]
[1727323394115,13.60217179,149.37,149.32,0.3229037]
[1727323394116,6.90737179,149.37,149.32,0.3229037]
[1727323395029,6.90737179,149.37,149.33,29.67491378]
[1727323395236,20.13,149.43,149.33,28.33561275]
[1727323395542,6.904865,149.39,149.33,16.3073]
[1727323395748,20.13,149.41,149.33,16.3073]
[1727323395933,6.90509493,149.39,149.33,16.3073]
[1727323396415,0.12549,149.38,149.33,16.3073]
[1727323396942,0.25098,149.38,149.33,16.3073]
[1727323399649,6.6948,149.37,149.33,16.3073]
[1727323400048,0.12549,149.38,149.33,16.3073]
[1727323405129,0.25098,149.38,149.33,16.3073]
[1727323405332,6.94528,149.38,149.33,16.3073]
[1727323407863,6.6948,149.37,149.33,16.3073]
[1727323408034,0.12549,149.36,149.33,16.3073]
[1727323412952,6.90399642,149.37,149.33,16.3073]
[1727323423879,6.90399642,149.37,149.34,1.33926577]
[1727323424182,6.693,149.41,149.34,1.33926577]
[1727323424682,13.60236007,149.41,149.34,1.33926577]
[1727323425579,0.12549,149.4,149.34,1.33926577]
[1727323427763,0.12549,149.4,149.33,28.33561275]
[1727323427965,0.12549,149.4,149.33,16.3073]
[1727323428188,0.12549,149.4,149.33,28.33561275]
[1727323428385,0.12549,149.4,149.35,6.199]
[1727323432583,6.90936007,149.41,149.36,16.79700095]
[1727323432879,6.6922,149.43,149.36,16.79700095]
[1727323433086,13.61173931,149.43,149.36,16.79700095]
[1727323433784,13.61173931,149.43,149.36,28.8253137]
[1727323433785,6.91953931,149.43,149.36,28.8253137]
[1727323434096,6.91953931,149.43,149.36,27.48631275]
[1727323435895,6.91953931,149.43,149.36,15.458]
[1727323440481,6.91953931,149.43,149.37,1.33865246]
[1727323440665,6.91953931,149.43,149.36,27.48631275]
[1727323442497,6.6935,149.4,149.32,0.3229037]
[1727323442702,6.6939,149.39,149.32,0.3229037]
[1727323442987,0.12549,149.38,149.32,0.3229037]
[1727323443384,7.04862409,149.38,149.32,0.3229037]
[1727323443783,6.82019,149.37,149.32,0.3229037]
[1727323444098,0.12549,149.36,149.32,0.3229037]
[1727323445091,13.61753409,149.38,149.32,1.6622504]
[1727323445292,6.92313409,149.38,149.32,1.6622504]
[1727323445508,6.92313409,149.38,149.32,0.3229037]
[1727323446380,6.94568,149.37,149.32,0.3229037]
[1727323447985,6.6952,149.36,149.32,0.3229037]
[1727323448174,0.12549,149.35,149.32,0.3229037]
[1727323449391,0.25098,149.35,149.32,0.3229037]
[1727323450400,0.12549,149.36,149.32,0.3229037]
[1727323450587,6.6948,149.37,149.32,0.3229037]
[1727323452000,0.25098,149.36,149.32,0.3229037]
[1727323452696,6.82069,149.36,149.32,0.3229037]
[1727323453676,13.74097034,149.36,149.32,0.3229037]
[1727323455191,6.92028034,149.36,149.32,0.3229037]
[1727323459515,0.25098,149.37,149.32,0.3229037]
[1727323459713,0.12549,149.37,149.32,0.3229037]
[1727323467619,20.25549,149.37,149.32,0.3229037]
[1727323467911,0.12549,149.37,149.32,0.3229037]
[1727323470212,7.03501059,149.37,149.32,0.3229037]
[1727323470383,13.72981059,149.37,149.32,0.3229037]
[1727323476396,7.03501059,149.37,149.32,1.66223799]
[1727323477018,7.03501059,149.37,149.32,0.3229037]
[1727323478016,20.13,149.36,149.32,0.3229037]
[1727323478220,7.03501059,149.37,149.32,0.3229037]
[1727323479121,13.72991059,149.37,149.32,0.3229037]
[1727323482037,7.03501059,149.37,149.32,0.3229037]
[1727323496845,6.6944,149.38,149.32,0.3229037]
[1727323501948,6.6947,149.37,149.32,0.3229037]
[1727323503418,6.6955,149.36,149.32,0.3229037]
[1727323503842,0.12549,149.36,149.32,0.3229037]
[1727323504041,0.12549,149.34,149.32,0.3229037]
[1727323504453,0.25098,149.34,149.32,0.3229037]
[1727323504829,0.12549,149.34,149.32,0.3229037]
[1727323507549,7.10951972,149.34,149.32,0.3229037]
[1727323513462,13.80571972,149.34,149.32,0.3229037]
[1727323514847,6.6965,149.33,149.32,0.3229037]
[1727323515048,6.82199,149.33,149.32,0.3229037]
[1727323515462,70.856164,149.29,149.28,0.3569946]
[1727323515956,6.6983,149.3,149.28,0.3569946]
[1727323516460,6.94928,149.29,149.28,0.3569946]
[1727323516866,30.726164,149.29,149.28,0.3569946]
[1727323517460,50.856164,149.29,149.28,0.3569946]
[1727323517858,57.84449284,149.29,149.28,0.3569946]
[1727323518458,37.71449284,149.29,149.28,0.3569946]
[1727323524067,57.84449284,149.29,149.28,0.3569946]
[1727323527864,77.84449284,149.29,149.28,0.3569946]
[1727323531260,57.71449284,149.29,149.28,0.3569946]
[1727323531455,6.98832884,149.29,149.28,0.3569946]
[1727323533074,7.11381884,149.29,149.28,0.3569946]
[1727323534979,6.98832884,149.29,149.28,0.3569946]
[1727323535460,7.11381884,149.29,149.28,0.3569946]
[1727323538785,13.93760884,149.29,149.28,0.3569946]
[1727323539282,37.71449284,149.29,149.28,0.3569946]
[1727323539468,57.84449284,149.29,149.28,0.3569946]
[1727323544378,77.84449284,149.29,149.28,0.3569946]
[1727323545060,57.71449284,149.29,149.28,0.3569946]
[1727323548588,27.23930884,149.29,149.28,0.3569946]
[1727323548762,7.23930884,149.29,149.28,0.3569946]
[1727323549587,6.98832884,149.29,149.28,0.3569946]
[1727323550777,7.11381884,149.29,149.28,0.3569946]
[1727323555098,31.01619284,149.29,149.28,0.3569946]
[1727323556506,7.23930884,149.29,149.28,0.3569946]
[1727323560897,7.11381884,149.29,149.28,0.3569946]
[1727323578198,6.98832884,149.29,149.28,0.3569946]
[1727323578397,6.6975,149.31,149.28,0.3569946]
[1727323578709,0.25098,149.3,149.28,0.3569946]
[1727323582312,6.94898,149.3,149.28,0.3569946]
[1727323586019,0.12549,149.3,149.28,0.3569946]
[1727323590196,30.725764,149.3,149.28,0.3569946]
[1727323592229,24.027864,149.3,149.28,0.3569946]
[1727323595122,0.25098,149.3,149.28,0.3569946]
[1727323598638,6.99968705,149.31,149.28,0.3569946]
[1727323598813,6.6966,149.33,149.28,0.3569946]
[1727323599324,13.69554002,149.33,149.28,0.3569946]
[1727323599702,6.99894002,149.33,149.28,0.3569946]
[1727323600108,6.6954,149.36,149.28,0.3569946]
[1727323600109,20.0,149.35,149.28,0.3569946]
[1727323600311,6.99800219,149.35,149.28,12.38530735]
[1727323600511,6.6948,149.37,149.28,12.38530735]
[1727323600711,26.8548,149.37,149.28,12.38530735]
[1727323600940,6.9977112,149.36,149.29,18.68431275]
[1727323601433,6.9977112,149.36,149.29,6.656]
[1727323602632,0.12549,149.35,149.29,6.656]
[1727323603845,0.25098,149.35,149.29,6.656]
[1727323605513,44.187864,149.35,149.28,0.3569946]
[1727323605713,0.25098,149.33,149.28,0.3569946]
[1727323608340,0.25098,149.34,149.28,0.3569946]
[1727323609839,20.41098,149.34,149.28,0.3569946]
[1727323611246,0.25098,149.34,149.28,0.3569946]
[1727323620345,0.12549,149.34,149.28,0.3569946]
[1727323627936,6.9977112,149.36,149.3,33.98721275]
[1727323628137,20.16,149.37,149.31,13.36750825]
[1727323628448,6.99603456,149.4,149.33,27.57191275]
[1727323628650,6.99603456,149.4,149.34,12.02831275]
[1727323628969,0.2535095,149.44,149.37,15.5436]
[1727323629253,34.098977,149.44,149.37,15.5436]
[1727323630737,0.25098,149.43,149.37,15.5436]
[1727323630946,44.187864,149.43,149.37,15.5436]
[1727323631461,50.880064,149.43,149.37,15.5436]
[1727323635743,44.187864,149.43,149.37,15.5436]
[1727323635952,0.25098,149.43,149.37,15.5436]
[1727323636338,0.12549,149.43,149.37,27.57191275]
[1727323636860,0.2535095,149.44,149.37,27.57191275]
[1727323637058,0.2535095,149.44,149.37,15.5436]
[1727323637261,0.2535095,149.44,149.38,1.33861103]
[1727323637640,0.2535095,149.44,149.37,27.57191275]
[1727323637845,0.2535095,149.44,149.38,1.33859962]
[1727323639265,0.2535095,149.44,149.38,13.36691237]
[1727323639464,0.2535095,149.44,149.39,35.7383345]
[1727323639760,0.2535095,149.44,149.41,12.02831275]
[1727323640444,0.2535095,149.44,149.4,12.02831275]
[1727323640840,0.2535095,149.44,149.39,22.3715]
[1727323646162,20.16,149.45,149.39,22.3715]
[1727323646163,19.9135095,149.45,149.39,22.3715]
[1727323647672,0.12549,149.45,149.39,22.3715]
[1727323648765,0.12549,149.46,149.39,22.3715]
[1727323648969,0.25098,149.44,149.39,22.3715]
[1727323649873,19.667019,149.45,149.39,22.3715]
[1727323650247,0.12549,149.44,149.39,22.3715]
[1727323651264,0.25098,149.44,149.39,22.3715]
[1727323651473,0.25098,149.44,149.39,16.1925]
[1727323652573,19.667019,149.43,149.39,16.1925]
[1727323653152,0.25098,149.42,149.39,16.1925]
[1727323654272,0.12549,149.4,149.35,22.1006]
[1727323666075,0.12549,149.4,149.35,16.0617]
[1727323668989,0.12549,149.41,149.35,16.0617]
[1727323669765,20.16,149.42,149.35,16.0617]
[1727323670376,20.16,149.43,149.35,28.09001275]
[1727323671081,0.12549,149.42,149.35,28.09001275]
[1727323671793,0.25098,149.43,149.36,1.33871482]
[1727323672264,0.25098,149.43,149.37,18.26261275]
[1727323672464,6.99459098,149.45,149.39,28.50851275]
[1727323672681,6.9433095,149.48,149.39,28.50851275]
[1727323672860,20.16,149.47,149.39,28.50851275]
[1727323673978,0.12549,149.46,149.39,28.50851275]
[1727323674584,0.12549,149.46,149.39,16.4802]
[1727323675168,50.878264,149.47,149.39,16.4802]
[1727323675370,0.12549,149.45,149.39,16.4802]
[1727323675578,27.10218,149.45,149.39,16.4802]
[1727323678383,0.25098,149.42,149.39,16.4802]
[1727323678686,20.41098,149.42,149.39,16.4802]
[1727323680558,20.41098,149.42,149.34,15.8269]
[1727323681091,0.12549,149.4,149.34,15.8269]
[1727323681264,0.25098,149.4,149.34,15.8269]
[1727323681879,20.41098,149.38,149.34,15.8269]
[1727323682088,27.10538,149.38,149.33,0.2535095]
[1727323683072,20.41098,149.38,149.33,0.2535095]
[1727323685679,20.25098,149.38,149.33,0.2535095]
[1727323687390,47.10538,149.38,149.33,0.2535095]
[1727323693690,54.10272724,149.38,149.33,0.2535095]
[1727323703501,6.99734724,149.38,149.33,0.2535095]
[1727323703677,20.16,149.4,149.33,1.59254691]
[1727323704388,13.69678842,149.41,149.33,1.59254691]
[1727323704596,33.85678842,149.41,149.33,0.2535095]
[1727323705105,0.25098,149.4,149.33,0.2535095]
[1727323708303,0.12549,149.4,149.34,1.33896732]
[1727323708605,27.16368842,149.41,149.35,15.6783]
[1727323708606,7.00368842,149.41,149.35,15.6783]
[1727323708901,6.6915,149.45,149.36,13.36704028]
[1727323709199,6.6907,149.47,149.38,12.02831275]
[1727323709404,7.00078515,149.46,149.38,12.02831275]
[1727323710506,7.00078515,149.46,149.39,27.70661275]
[1727323710808,6.9433095,149.48,149.4,12.02831275]
[1727323711300,0.2535095,149.48,149.41,13.36662637]
[1727323711704,20.2535095,149.48,149.41,12.02831275]
[1727323712079,0.2535095,149.48,149.42,12.02831275]
[1727323712303,0.2535095,149.48,149.44,28.60321275]
[1727323712487,0.2535095,149.48,149.45,1.33803304]
[1727323714114,0.2535095,149.48,149.44,16.5749]
[1727323719224,0.2535095,149.48,149.45,1.33804471]
[1727323719523,0.2535095,149.48,149.44,16.5749]
[1727323721807,0.2535095,149.48,149.4,22.9474]
[1727323722012,6.9435095,149.48,149.4,22.9474]
[1727323723822,0.12549,149.47,149.4,22.9474]
[1727323725123,0.12549,149.47,149.41,12.02831275]
[1727323730834,6.6908,149.46,149.4,16.4547]
[1727323731608,6.6908,149.46,149.38,12.02831275]
[1727323733221,13.68949444,149.46,149.38,12.02831275]
[1727323734433,6.6908,149.46,149.38,12.02831275]
[1727323735645,0.25098,149.47,149.38,12.02831275]